fUST/lending_fUST_20250831
["ID","MTS","AMOUNT","RATE_DAILY","PERIOD"]
[382465020,1756636256586,-500.0,0.00018473,2]
[382465021,1756636256596,-500.0,0.00018473,2]
[382465022,1756636256604,-500.0,0.00018473,2]
[382465023,1756636256613,-500.0,0.00018473,2]
[382465024,1756636256621,-500.0,0.00018473,2]
[382465025,1756636256630,-500.0,0.00018473,2]
[382465026,1756636256638,-500.24861322,0.00018473,2]
[382465027,1756636256646,-200.97791539,0.00018473,2]
[382465028,1756636256655,-554.69671263,0.00018473,2]
[382465029,1756636256663,-500.0,0.00018473,2]
[382465030,1756636256671,-500.0,0.00018473,2]
[382465031,1756636256679,-26.73492984,0.00018473,2]
[382465032,1756636257391,-434.92,0.0001793,2]
[382465033,1756636257404,-45.08,0.0001793,2]
[382465034,1756636257413,-473.26507016,0.00018473,2]
[382465035,1756636257423,-152.99492984,0.00018473,2]
[382465036,1756636257621,-347.00507016,0.00018473,2]
[382465037,1756636257637,-461.05579588,0.00018473,2]
[382465038,1756636295424,4597.89475471,0.000175,2]
[382465040,1756636382390,155.48908091,0.00016976,2]
[382465041,1756636390128,-155.48908091,0.00017501,2]
[382465042,1756636390150,-13.39283179,0.00017631,2]
[382465043,1756636409566,393.21022015,0.000175,2]
[382465044,1756636412934,1989.660891,0.00016741,2]
[382465045,1756636450878,693.0,0.00017488,2]
[382465046,1756636451608,-155.4890809,0.00017501,2]
[382465047,1756636502396,155.28946815,0.00017495,2]
[382465048,1756636542001,287.674107,0.00017198,2]
[382465049,1756636542350,958.32315705,0.00017198,2]
[382465050,1756636542372,42.83535904,0.00017198,2]
[382465051,1756636542679,-191.61854287,0.00017559,2]
[382465053,1756636546700,202.77507879,0.00017559,2]
[382465054,1756636622644,155.28946815,0.00016988,2]
[382465055,1756636631027,2779.2882741,0.00016864,2]
[382465056,1756636645143,666.0,0.0001673,2]
[382465057,1756636680585,484.44,0.00015984,2]
[382465058,1756636680756,484.44,0.00015984,2]
[382465059,1756636681391,-155.28946815,0.00017514,2]
[382465060,1756636681619,85.51502708,0.00013699,2]
[382465061,1756636681645,599.39485492,0.00013699,2]
[382465062,1756636681680,4831.15740283,0.0001673,2]
[382465063,1756636681701,5168.84259717,0.0001673,2]
[382465064,1756636683950,-155.28946816,0.00017514,2]
[382465066,1756636707653,536.43578411,0.000175,2]
[382465067,1756636802557,155.28946815,0.00016988,2]
[382465068,1756636951402,1000.0,0.00016721,2]
[382465069,1756637224860,-155.65542487,0.00017513,2]
[382465070,1756637328516,994.830446,0.00016721,2]
[382465112,1756637431951,-168.6706137,0.00017631,2]
[382465114,1756637431960,-168.67061369,0.00017656,2]
[382465116,1756637431969,-168.67061369,0.00017681,2]
[382465117,1756637431979,-168.67061369,0.00017706,2]
[382465120,1756637431988,-1200.0,0.00017717,2]
[382465122,1756637431997,-1200.0,0.00017718,2]
[382465124,1756637432006,-300.0,0.00017718,2]
[382465125,1756637432016,-300.0,0.00017718,2]
[382465127,1756637432026,-300.0,0.00017718,2]
[382465128,1756637432035,-300.0,0.00017718,2]
[382465129,1756637432049,-151.0,0.0001772,2]
[382465130,1756637432059,-151.0,0.0001772,2]
[382465131,1756637432068,-151.0,0.0001772,2]
[382465132,1756637432078,-151.0,0.0001772,2]
[382465133,1756637432087,-120.81094823,0.0001772,2]
[382465134,1756637432099,-166.21494085,0.0001772,2]
[382465135,1756637432109,-209.40437684,0.0001772,2]
[382465136,1756637432118,-2227.76,0.00017721,3]
[382465137,1756637432128,-1113.88,0.00017721,3]
[382465138,1756637432137,-556.94,0.00017721,3]
[382465139,1756637432147,-278.47,0.00017721,3]
[382465140,1756637432156,-835.43,0.00017721,3]
[382465141,1756637432165,-480.0,0.00017729,2]
[382465142,1756637432175,-1144.52,0.00017729,2]
[382465143,1756637432184,-1461.31,0.00017729,2]
[382465144,1756637432193,-3249.16,0.00017729,2]
[382465145,1756637432203,-3783.74,0.00017729,2]
[382465146,1756637432213,-1493.04,0.00017729,2]
[382465147,1756637432223,-480.0,0.00017729,2]
[382465148,1756637432232,-635.1568521,0.0001773,2]
[382465149,1756637432241,-480.0,0.0001773,2]
[382465150,1756637432251,-480.0,0.0001773,2]
[382465151,1756637432260,-480.0,0.0001773,2]
[382465152,1756637432269,-478.23809356,0.0001773,2]
[382465153,1756637432278,-1570.65,0.0001773,2]
[382465154,1756637432287,-732.15,0.0001773,2]
[382465155,1756637432297,-480.0,0.0001773,2]
[382465156,1756637432306,-574.2,0.0001773,2]
[382465157,1756637432315,-480.0,0.0001773,2]
[382465158,1756637432325,-480.0,0.0001773,2]
[382465159,1756637432334,-726.56,0.0001773,2]
[382465160,1756637432343,-575.56,0.0001773,2]
[382465161,1756637432352,-480.0,0.0001773,2]
[382465162,1756637432362,-480.0,0.0001773,2]
[382465163,1756637432371,-480.0,0.0001773,2]
[382465164,1756637432380,-480.0,0.0001773,2]
[382465165,1756637432390,-480.0,0.0001773,2]
[382465166,1756637432399,-480.0,0.0001773,2]
[382465167,1756637432409,-480.0,0.0001773,2]
[382465168,1756637432419,-251.48425016,0.0001773,2]
[382465169,1756637432428,-480.0,0.0001773,2]
[382465170,1756637432437,-480.0,0.0001773,2]
[382465171,1756637432447,-1194.16,0.0001773,2]
[382465172,1756637432456,-4677.29,0.0001773,2]
[382465173,1756637432465,-829.19,0.0001773,2]
[382465174,1756637432474,-379.90111321,0.0001773,2]
[382465175,1756637432483,-702.91,0.0001773,2]
[382465176,1756637432493,-480.0,0.0001773,2]
[382465177,1756637432502,-480.0,0.0001773,2]
[382465178,1756637432511,-480.0,0.0001773,2]
[382465179,1756637432521,-480.0,0.0001773,2]
[382465180,1756637432531,-480.0,0.0001773,2]
[382465181,1756637432540,-480.0,0.0001773,2]
[382465182,1756637432551,-480.0,0.0001773,2]
[382465183,1756637432560,-480.0,0.0001773,2]
[382465184,1756637432570,-610.7,0.0001773,2]
[382465185,1756637432580,-480.0,0.0001773,2]
[382465186,1756637432589,-1264.33,0.0001773,2]
[382465187,1756637432599,-480.0,0.0001773,2]
[382465188,1756637432608,-871.44,0.0001773,2]
[382465189,1756637432618,-482.32,0.0001773,2]
[382465190,1756637432628,-2057.9,0.0001773,2]
[382465191,1756637432638,-1064.26,0.0001773,2]
[382465192,1756637432648,-1564.12,0.0001773,2]
[382465193,1756637432657,-480.0,0.0001773,2]
[382465194,1756637432667,-697.72,0.0001773,2]
[382465195,1756637432677,-480.0,0.0001773,2]
[382465196,1756637432686,-955.52,0.0001773,2]
[382465197,1756637432695,-1592.37,0.0001773,2]
[382465198,1756637432704,-548.83,0.0001773,2]
[382465199,1756637432714,-480.0,0.0001773,2]
[382465200,1756637432724,-1032.08,0.0001773,2]
[382465201,1756637432733,-482.21,0.0001773,2]
[382465202,1756637432742,-1620.39,0.0001773,2]
[382465203,1756637432751,-1293.16,0.0001773,2]
[382465204,1756637432760,-480.0,0.0001773,2]
[382465205,1756637432770,-480.0,0.0001773,2]
[382465206,1756637432780,-791.91,0.0001773,2]
[382465207,1756637432789,-1606.56,0.0001773,2]
[382465208,1756637432798,-480.0,0.0001773,2]
[382465209,1756637432808,-281.17857586,0.0001773,2]
[382465210,1756637432817,-774.14,0.0001773,2]
[382465211,1756637432826,-988.6,0.0001773,2]
[382465212,1756637432835,-480.0,0.0001773,2]
[382465213,1756637432845,-480.0,0.0001773,2]
[382465214,1756637432854,-480.0,0.0001773,2]
[382465215,1756637432864,-5022.83,0.0001773,2]
[382465216,1756637432873,-236.93270534,0.0001773,2]
[382465217,1756637432883,-480.0,0.0001773,2]
[382465218,1756637432893,-455.76588376,0.0001773,2]
[382465219,1756637432903,-1380.86,0.0001773,2]
[382465220,1756637432912,-480.0,0.0001773,2]
[382465221,1756637432922,-4169.03,0.0001773,2]
[382465222,1756637432931,-172.59349729,0.0001773,2]
[382465223,1756637432941,-480.0,0.0001773,2]
[382465224,1756637432950,-480.0,0.0001773,2]
[382465225,1756637432959,-480.0,0.0001773,2]
[382465226,1756637432968,-480.0,0.0001773,2]
[382465227,1756637432978,-619.89,0.0001773,2]
[382465228,1756637432987,-130998.32211313,0.00017731,2]
[382465237,1756637437944,-1552.15,0.00017731,2]
[382465239,1756637437955,-237449.52788687,0.00017731,2]
[382465241,1756637437965,-500.0,0.00017731,2]
[382465243,1756637437974,-200.0,0.00017731,10]
[382465245,1756637437984,-200.0,0.00017731,10]
[382465247,1756637437994,-200.0,0.00017731,10]
[382465249,1756637438003,-200.0,0.00017731,10]
[382465251,1756637438013,-200.0,0.00017731,10]
[382465253,1756637438022,-200.0,0.00017731,10]
[382465255,1756637438031,-200.0,0.00017731,10]
[382465257,1756637438040,-200.0,0.00017731,10]
[382465259,1756637438049,-200.0,0.00017731,10]
[382465261,1756637438059,-200.0,0.00017731,10]
[382465263,1756637438068,-200.0,0.00017731,10]
[382465265,1756637438078,-200.0,0.00017731,10]
[382465267,1756637438087,-200.0,0.00017731,10]
[382465269,1756637438097,-200.0,0.00017731,10]
[382465271,1756637438107,-200.0,0.00017731,10]
[382465273,1756637438116,-200.0,0.00017731,10]
[382465275,1756637438125,-200.0,0.00017731,10]
[382465277,1756637438135,-200.0,0.00017731,10]
[382465279,1756637438145,-200.0,0.00017731,10]
[382465281,1756637438154,-200.0,0.00017731,10]
[382465283,1756637438163,-200.0,0.00017731,10]
[382465285,1756637438172,-200.0,0.00017731,10]
[382465287,1756637438182,-200.0,0.00017731,10]
[382465289,1756637438191,-200.0,0.00017731,10]
[382465291,1756637438200,-200.0,0.00017731,10]
[382465293,1756637438210,-200.0,0.00017731,10]
[382465295,1756637438219,-200.0,0.00017731,10]
[382465297,1756637438229,-200.0,0.00017731,10]
[382465299,1756637438238,-200.0,0.00017731,10]
[382465301,1756637438248,-200.0,0.00017731,10]
[382465303,1756637438257,-200.0,0.00017731,10]
[382465305,1756637438266,-200.0,0.00017731,10]
[382465307,1756637438276,-200.0,0.00017731,10]
[382465309,1756637438285,-200.0,0.00017731,10]
[382465311,1756637438294,-200.0,0.00017731,10]
[382465313,1756637438303,-200.0,0.00017731,10]
[382465315,1756637438313,-200.0,0.00017731,10]
[382465317,1756637438322,-244.467979,0.00017731,10]
[382465319,1756637438331,-168.67061369,0.00017731,2]
[382465321,1756637438340,-500.4653867,0.00017773,2]
[382465323,1756637438351,-500.0,0.00017773,2]
[382465325,1756637438360,-500.0,0.00017773,2]
[382465327,1756637438369,-500.0,0.00017773,2]
[382465329,1756637438378,-500.0,0.00017773,2]
[382465331,1756637438387,-403.58140753,0.00017773,2]
[382465333,1756637438396,-500.0,0.00017773,2]
[382465335,1756637438405,-500.0,0.00017773,2]
[382465337,1756637438414,-500.0,0.00017773,2]
[382465339,1756637438424,-500.0,0.00017773,2]
[382465341,1756637438433,-500.0,0.00017773,2]
[382465343,1756637438442,-500.0,0.00017773,2]
[382465345,1756637438451,-500.0,0.00017773,2]
[382465347,1756637438460,-432.56640123,0.00017773,2]
[382465349,1756637438469,-579.34668092,0.00017773,2]
[382465351,1756637438479,-510.94333666,0.00017773,2]
[382465353,1756637438488,-500.0,0.00017773,2]
[382465355,1756637438497,-1000.0,0.00017808,2]
[382465357,1756637438508,-1000.0,0.00017808,2]
[382465359,1756637438517,-1000.0,0.00017808,2]
[382465361,1756637438526,-1000.0,0.00017808,2]
[382465363,1756637438536,-1000.0,0.00017808,2]
[382465365,1756637438544,-1000.0,0.00017808,2]
[382465367,1756637438558,-1000.0,0.00017808,2]
[382465369,1756637438567,-1000.0,0.00017808,2]
[382465371,1756637438577,-1000.0,0.00017808,2]
[382465373,1756637438585,-1000.0,0.00017808,2]
[382465375,1756637438595,-1000.0,0.00017808,2]
[382465377,1756637438604,-1000.0,0.00017808,2]
[382465379,1756637438613,-1000.0,0.00017808,2]
[382465381,1756637438623,-1000.0,0.00017808,2]
[382465383,1756637438632,-1000.0,0.00017808,2]
[382465385,1756637438642,-1000.0,0.00017808,2]
[382465387,1756637438651,-1000.0,0.00017808,2]
[382465389,1756637438663,-1000.0,0.00017808,2]
[382465391,1756637438672,-720.78824563,0.00017808,2]
[382465393,1756637438681,-480.0,0.00017829,2]
[382465395,1756637438691,-1279.58,0.00017829,2]
[382465397,1756637438700,-505.13,0.00017829,2]
[382465399,1756637438709,-480.0,0.00017829,2]
[382465401,1756637438718,-1671.98,0.00017829,2]
[382465403,1756637438728,-1077.33,0.00017829,2]
[382465405,1756637438737,-1256.64,0.00017829,2]
[382465407,1756637438747,-1682.16,0.00017829,2]
[382465409,1756637438756,-2109.08,0.00017829,2]
[382465411,1756637438765,-860.52,0.00017829,2]
[382465413,1756637438775,-480.0,0.00017829,2]
[382465415,1756637438784,-1269.01,0.00017829,2]
[382465417,1756637438794,-1516.54,0.00017829,2]
[382465419,1756637438803,-480.0,0.00017829,2]
[382465421,1756637438812,-561.79,0.00017829,2]
[382465423,1756637438822,-480.0,0.00017829,2]
[382465425,1756637438831,-857.09,0.00017829,2]
[382465427,1756637438841,-2350.75,0.00017829,2]
[382465429,1756637438850,-945.48,0.00017829,2]
[382465431,1756637438860,-2700.54,0.00017829,2]
[382465433,1756637438869,-480.0,0.00017829,2]
[382465435,1756637438879,-887.38,0.00017829,2]
[382465437,1756637438888,-920.01,0.00017829,2]
[382465439,1756637438897,-520.71,0.00017829,2]
[382465441,1756637438907,-1260.16,0.00017829,2]
[382465443,1756637438916,-1778.63,0.00017829,2]
[382465445,1756637438926,-1450.81,0.00017829,2]
[382465447,1756637438935,-480.0,0.00017831,2]
[382465449,1756637438944,-480.0,0.00017831,2]
[382465451,1756637438954,-480.0,0.00017831,2]
[382465453,1756637438964,-480.0,0.00017831,2]
[382465455,1756637438973,-457.56722464,0.00017831,2]
[382465457,1756637438983,-480.0,0.00017831,2]
[382465459,1756637438992,-500.0,0.00017831,2]
[382465461,1756637439001,-378.14187681,0.00017831,2]
[382465463,1756637439011,-505.67,0.00017831,2]
[382465465,1756637439020,-480.0,0.00017831,2]
[382465467,1756637439031,-200.0,0.00017831,2]
[382465469,1756637439043,-480.0,0.00017831,2]
[382465471,1756637439052,-177.82874049,0.00017831,2]
[382465473,1756637439061,-480.0,0.00017831,2]
[382465475,1756637439070,-480.0,0.00017831,2]
[382465477,1756637439079,-1124.17,0.00017831,2]
[382465479,1756637439089,-480.0,0.00017831,2]
[382465481,1756637439098,-480.0,0.00017831,2]
[382465483,1756637439107,-560.94,0.00017831,2]
[382465485,1756637439116,-480.0,0.00017831,2]
[382465486,1756637439125,-480.0,0.00017831,2]
[382465487,1756637439134,-1176.05,0.00017831,2]
[382465488,1756637439143,-480.0,0.00017831,2]
[382465489,1756637439152,-480.0,0.00017831,2]
[382465490,1756637439162,-480.0,0.00017831,2]
[382465491,1756637439171,-480.0,0.00017831,2]
[382465492,1756637439180,-480.0,0.00017831,2]
[382465493,1756637439189,-480.0,0.00017831,2]
[382465494,1756637439198,-480.0,0.00017831,2]
[382465495,1756637439207,-480.0,0.00017831,2]
[382465496,1756637439215,-480.0,0.00017831,2]
[382465497,1756637439224,-480.0,0.00017831,2]
[382465498,1756637439233,-480.0,0.00017831,2]
[382465499,1756637439242,-480.0,0.00017831,2]
[382465500,1756637439251,-480.0,0.00017831,2]
[382465501,1756637439261,-480.0,0.00017831,2]
[382465502,1756637439270,-480.0,0.00017831,2]
[382465503,1756637439279,-480.0,0.00017831,2]
[382465504,1756637439288,-480.0,0.00017831,2]
[382465505,1756637439297,-480.0,0.00017831,2]
[382465506,1756637439306,-480.0,0.00017831,2]
[382465507,1756637439315,-480.0,0.00017831,2]
[382465508,1756637439324,-480.0,0.00017831,2]
[382465509,1756637439333,-604.76,0.00017831,2]
[382465510,1756637439342,-637.33,0.00017831,2]
[382465511,1756637439350,-485.54,0.00017831,2]
[382465512,1756637439359,-504.47,0.00017831,2]
[382465513,1756637439368,-693.64,0.00017831,2]
[382465514,1756637439377,-480.0,0.00017831,2]
[382465516,1756637439387,-480.0,0.00017831,2]
[382465518,1756637439397,-247.99788616,0.00017831,2]
[382465520,1756637439406,-689.24,0.00017831,2]
[382465522,1756637439415,-480.0,0.00017831,2]
[382465524,1756637439425,-480.0,0.00017831,2]
[382465526,1756637439434,-542.76,0.00017831,2]
[382465528,1756637439443,-480.0,0.00017831,2]
[382465530,1756637439452,-1625.51,0.00017831,2]
[382465532,1756637439462,-480.0,0.00017831,2]
[382465535,1756637439471,-698.97,0.00017831,2]
[382465539,1756637439480,-480.0,0.00017831,2]
[382465542,1756637439490,-480.0,0.00017831,2]
[382465546,1756637439499,-566.93,0.00017831,2]
[382465549,1756637439509,-480.0,0.00017831,2]
[382465553,1756637439518,-480.0,0.00017831,2]
[382465556,1756637439528,-1661.42,0.00017831,2]
[382465559,1756637439538,-480.0,0.00017831,2]
[382465562,1756637439547,-480.0,0.00017831,2]
[382465564,1756637439562,-480.0,0.00017831,2]
[382465566,1756637439571,-480.0,0.00017831,2]
[382465568,1756637439580,-1708.64,0.00017831,2]
[382465570,1756637439589,-480.0,0.00017831,2]
[382465572,1756637439600,-480.0,0.00017831,2]
[382465574,1756637439609,-480.0,0.00017831,2]
[382465576,1756637439619,-480.0,0.00017831,2]
[382465578,1756637439629,-480.0,0.00017831,2]
[382465580,1756637439638,-574.8,0.00017831,2]
[382465582,1756637439647,-1172.73,0.00017831,2]
[382465584,1756637439657,-480.0,0.00017831,2]
[382465586,1756637439667,-1243.65,0.00017831,2]
[382465588,1756637439676,-485.31157402,0.00017831,2]
[382465590,1756637439685,-736.3,0.00017831,2]
[382465592,1756637439695,-707.6,0.00017831,2]
[382465594,1756637439703,-480.0,0.00017831,2]
[382465596,1756637439713,-480.0,0.00017831,2]
[382465598,1756637439723,-491.2,0.00017831,2]
[382465600,1756637439733,-480.0,0.00017831,2]
[382465602,1756637439743,-954.95,0.00017831,2]
[382465604,1756637439751,-480.0,0.00017831,2]
[382465606,1756637439761,-413.3736342,0.00017831,2]
[382465608,1756637439770,-480.0,0.00017831,2]
[382465609,1756637439780,-484.91050785,0.00017831,2]
[382465611,1756637439789,-713.16,0.00017831,2]
[382465613,1756637439800,-480.0,0.00017831,2]
[382465615,1756637439810,-623.78,0.00017831,2]
[382465617,1756637439819,-480.0,0.00017831,2]
[382465619,1756637439829,-1423.65,0.00017831,2]
[382465621,1756637439838,-1174.01,0.00017831,2]
[382465623,1756637439847,-1618.11,0.00017831,2]
[382465625,1756637439856,-1985.53,0.00017831,2]
[382465627,1756637439866,-480.0,0.00017831,2]
[382465629,1756637439876,-542.97,0.00017831,2]
[382465631,1756637439885,-513.13,0.00017831,2]
[382465633,1756637439894,-797.17,0.00017831,2]
[382465635,1756637439903,-480.0,0.00017831,2]
[382465637,1756637439913,-822.64,0.00017831,2]
[382465639,1756637439923,-480.0,0.00017831,2]
[382465641,1756637439932,-481.5065541,0.00017831,2]
[382465643,1756637439941,-551.61,0.00017831,2]
[382465645,1756637439951,-1008.05,0.00017831,2]
[382465647,1756637439960,-1868.04,0.00017831,2]
[382465649,1756637439969,-480.0,0.00017831,2]
[382465651,1756637439979,-1645.4,0.00017831,2]
[382465653,1756637439988,-499.06,0.00017831,2]
[382465655,1756637439997,-480.0,0.00017831,2]
[382465657,1756637440006,-480.0,0.00017831,2]
[382465659,1756637440015,-480.0,0.00017831,2]
[382465661,1756637440028,-501.86,0.00017831,2]
[382465663,1756637440037,-480.0,0.00017831,2]
[382465665,1756637440046,-1512.99,0.00017831,2]
[382465667,1756637440055,-480.0,0.00017831,2]
[382465669,1756637440064,-480.0,0.00017831,2]
[382465671,1756637440074,-480.0,0.00017831,2]
[382465673,1756637440082,-480.0,0.00017831,2]
[382465675,1756637440092,-910.33,0.00017831,2]
[382465677,1756637440101,-822.43,0.00017831,2]
[382465679,1756637440110,-480.0,0.00017831,2]
[382465681,1756637440119,-562.04,0.00017831,2]
[382465683,1756637440128,-1623.33,0.00017831,2]
[382465685,1756637440137,-480.0,0.00017831,2]
[382465688,1756637440157,-2711.73,0.00017831,2]
[382465690,1756637440166,-480.32030878,0.00017831,2]
[382465692,1756637440176,-480.0,0.00017831,2]
[382465694,1756637440186,-480.0,0.00017831,2]
[382465696,1756637440195,-532.42,0.00017831,2]
[382465698,1756637440205,-480.0,0.00017831,2]
[382465700,1756637440214,-480.0,0.00017831,2]
[382465702,1756637440224,-480.0,0.00017831,2]
[382465704,1756637440234,-1031.32,0.00017831,2]
[382465706,1756637440244,-1497.34,0.00017831,2]
[382465708,1756637440254,-480.0,0.00017831,2]
[382465710,1756637440263,-480.0,0.00017831,2]
[382465712,1756637440274,-480.0,0.00017831,2]
[382465714,1756637440284,-480.0,0.00017831,2]
[382465716,1756637440294,-480.0,0.00017831,2]
[382465718,1756637440303,-480.0,0.00017831,2]
[382465720,1756637440314,-480.0,0.00017831,2]
[382465722,1756637440324,-480.0,0.00017831,2]
[382465724,1756637440334,-481.09469984,0.00017831,2]
[382465726,1756637440343,-480.0,0.00017831,2]
[382465728,1756637440353,-1768.58,0.00017831,2]
[382465730,1756637440362,-921.29,0.00017831,2]
[382465732,1756637440372,-480.0,0.00017831,2]
[382465734,1756637440382,-480.0,0.00017831,2]
[382465737,1756637440392,-1341.01,0.00017831,2]
[382465739,1756637440402,-279.29495814,0.00017831,2]
[382465741,1756637440411,-480.0,0.00017831,2]
[382465743,1756637440421,-1278.69,0.00017831,2]
[382465745,1756637440431,-481.12814767,0.00017831,2]
[382465747,1756637440440,-480.0,0.00017831,2]
[382465749,1756637440451,-778.5,0.00017831,2]
[382465751,1756637440461,-611.89,0.00017831,2]
[382465753,1756637440471,-312.43713229,0.00017831,2]
[382465755,1756637440481,-1662.65,0.00017831,2]
[382465757,1756637440490,-480.0,0.00017831,2]
[382465759,1756637440500,-480.0,0.00017831,2]
[382465761,1756637440510,-560.87,0.00017831,2]
[382465763,1756637440520,-480.0,0.00017831,2]
[382465765,1756637440531,-867.51,0.00017831,2]
[382465767,1756637440540,-480.0,0.00017831,2]
[382465769,1756637440551,-1657.95,0.00017831,2]
[382465771,1756637440562,-481.84,0.00017831,2]
[382465773,1756637440571,-480.0,0.00017831,2]
[382465775,1756637440582,-811.93,0.00017831,2]
[382465777,1756637440591,-480.0,0.00017831,2]
[382465779,1756637440600,-1724.59,0.00017831,2]
[382465781,1756637440610,-1357.56,0.00017831,2]
[382465783,1756637440620,-480.0,0.00017831,2]
[382465785,1756637440629,-480.0,0.00017831,2]
[382465788,1756637440639,-990.62,0.00017831,2]
[382465790,1756637440649,-480.0,0.00017831,2]
[382465792,1756637440658,-1262.8,0.00017831,2]
[382465794,1756637440668,-480.0,0.00017831,2]
[382465796,1756637440677,-787.75,0.00017831,2]
[382465798,1756637440687,-480.0,0.00017831,2]
[382465800,1756637440696,-480.0,0.00017831,2]
[382465802,1756637440706,-480.0,0.00017831,2]
[382465804,1756637440715,-480.0,0.00017831,2]
[382465806,1756637440726,-836.48,0.00017831,2]
[382465808,1756637440736,-480.0,0.00017831,2]
[382465810,1756637440746,-480.0,0.00017831,2]
[382465812,1756637440755,-810.6,0.00017831,2]
[382465814,1756637440766,-480.0,0.00017831,2]
[382465816,1756637440776,-480.0,0.00017831,2]
[382465818,1756637440786,-480.0,0.00017831,2]
[382465820,1756637440795,-532.68,0.00017831,2]
[382465822,1756637440805,-480.0,0.00017831,2]
[382465824,1756637440814,-691.26,0.00017831,2]
[382465826,1756637440823,-1403.13,0.00017831,2]
[382465828,1756637440833,-227.27386968,0.00017831,2]
[382465830,1756637440842,-186.55579662,0.00017831,2]
[382465832,1756637440852,-480.0,0.00017831,2]
[382465834,1756637440862,-480.0,0.00017831,2]
[382465836,1756637440872,-1504.03,0.00017831,2]
[382465838,1756637440881,-810.0,0.00017831,2]
[382465840,1756637440890,-480.0,0.00017831,2]
[382465842,1756637440900,-480.0,0.00017831,2]
[382465844,1756637440910,-787.25,0.00017831,2]
[382465866,1756637441110,-512.39,0.00017831,2]
[382465868,1756637441120,-1230.5,0.00017831,2]
[382465870,1756637441130,-1574.34,0.00017831,2]
[382465872,1756637441140,-483.67,0.00017831,2]
[382465874,1756637441151,-480.0,0.00017831,2]
[382465876,1756637441161,-2121.79,0.00017831,2]
[382465878,1756637441171,-480.0,0.00017831,2]
[382465880,1756637441180,-480.0,0.00017831,2]
[382465882,1756637441192,-480.0,0.00017831,2]
[382465884,1756637441202,-492.8,0.00017831,2]
[382465886,1756637441211,-543.79,0.00017831,2]
[382465888,1756637441220,-480.0,0.00017831,2]
[382465890,1756637441230,-480.0,0.00017831,2]
[382465892,1756637441239,-1059.21,0.00017831,2]
[382465894,1756637441248,-500.0,0.00017831,2]
[382465896,1756637441257,-983.12,0.00017831,2]
[382465898,1756637441267,-480.0,0.00017831,2]
[382465900,1756637441278,-480.0,0.00017831,2]
[382465902,1756637441287,-1394.45,0.00017831,2]
[382465904,1756637441296,-480.0,0.00017831,2]
[382465906,1756637441305,-843.8,0.00017831,2]
[382465908,1756637441314,-1843.78,0.00017831,2]
[382465910,1756637441324,-480.0,0.00017831,2]
[382465912,1756637441333,-1257.48,0.00017831,2]
[382465914,1756637441342,-480.0,0.00017831,2]
[382465916,1756637441351,-1536.51,0.00017831,2]
[382465918,1756637441360,-592.65,0.00017831,2]
[382465920,1756637441370,-480.0,0.00017831,2]
[382465922,1756637441379,-480.0,0.00017831,2]
[382465924,1756637441388,-480.0,0.00017831,2]